Cogmind - Beta 9.6 @@@ ROGUE MODE // 2020.08.17 @ 21:43:14 Player: Plexion Result: Destroyed by as-72706 with Assembled Rifle Performance ------------- Evolutions (0) 0 Regions Visited (4) 800 Robots Destroyed (28) 140 Value Destroyed (376) 376 Prototype IDs (22) 440 Alien Tech Used (0) 0 Bonus (300) 300 TOTAL SCORE: 2056 Bonus ------- Aligned with FarCom 300 Cogmind --------- Core Integrity 0/250 Matter 188/300 Energy 65/125 System Corruption 0% Temperature Cool (0) Movement Rolling (100) Ox1 Location -9/Mines Parts ------- > --- POWER (1) -------- Light Ion Engine > --- PROPULSION (2) --- Wheel Compact Wheel > --- UTILITY (2) ------ Large Storage Unit Large Storage Unit > --- WEAPON (2) ------- (None) > --- INVENTORY (16) --- Fission Core Light Fission Core Wheel Wheel Compact Wheel Compact Wheel Medium Storage Unit Medium Storage Unit Improved Sensor Array Trap Reconfigurator Small Laser Guided Plasma Cannon Field Lobotomy Kit Peak State ------------ > --- POWER ------------ Ion Engine > --- PROPULSION ------- Compact Wheel Compact Wheel > --- UTILITY ---------- Large Storage Unit Large Storage Unit > --- WEAPON ----------- Small Laser Assault Rifle > --- INVENTORY -------- Light Ion Engine Fission Core Light Fission Core Wheel Wheel Wheel Compact Wheel Compact Wheel Medium Storage Unit Medium Storage Unit Improved Sensor Array Trap Reconfigurator Small Laser Guided Plasma Cannon Rocket Launcher Field Lobotomy Kit [Rating: 12] Favorites ----------- Power Ion Engine Engine Ion Engine Propulsion Compact Wheel Wheel Compact Wheel Utility Large Storage Unit Storage Large Storage Unit Weapon Assault Rifle Energy Gun Small Laser Ballistic Gun Assault Rifle Launcher Rocket Launcher Build | -11 -10 -10 -10 -9 ------- Run | Scr Mat Min Exi Min Slots Evolved . | . . . . . Power . | . . . . . Propulsion . | . . . . . Utility . | . . . . . Weapon . | . . . . . Parts Attached 16 | 6 2 5 . 3 Power 2 | 1 . . . 1 Engine 2 | 1 . . . 1 Core . | . . . . . Reactor . | . . . . . Propulsion 5 | 2 . 2 . 1 Treads . | . . . . . Leg . | . . . . . Wheel 5 | 2 . 2 . 1 Hover . | . . . . . Flight . | . . . . . Utility 3 | 1 2 . . . Device . | . . . . . Storage 3 | 1 2 . . . Processor . | . . . . . Hackware . | . . . . . Protection . | . . . . . Artifact . | . . . . . Weapon 6 | 2 . 3 . 1 Energy Gun 4 | 1 . 3 . . Energy Cannon . | . . . . . Ballistic Gun 1 | 1 . . . . Ballistic Cannon . | . . . . . Launcher 1 | . . . . 1 Special Weapon . | . . . . . Impact Weapon . | . . . . . Slashing Weapon . | . . . . . Piercing Weapon . | . . . . . Special Melee Weapon . | . . . . . Unidentified Prototypes . | . . . . . Parts Lost 9 | . . 4 . 5 Power 1 | . . . . 1 Propulsion 2 | . . 1 . 1 Utility . | . . . . . Weapon 6 | . . 3 . 3 Highest Loss Streak 5 | . . 3 . 5 Average Slot Usage (%) 97 | . 87 100 100 94 Engine 13 | . 14 14 14 13 Wheel 27 | . 28 28 28 27 Storage 26 | . 16 28 28 28 Energy Gun 13 | . 14 14 14 12 Ballistic Gun 13 | . 14 14 14 10 Naked Turns . | . . . . . Heaviest Build 42 | 12 40 41 40 42 Greatest Support 32 | 26 26 32 32 32 Greatest Overweight (x) 1 | . 1 1 1 1 Average Overweight (x) . | . . 1 1 1 Largest Inventory Capacity 16 | 6 16 16 16 16 Average Capacity 13 | 5 7 16 16 16 Most Carried 16 | 5 9 12 16 16 Average Carried 10 | 2 6 9 14 15 Final Capacity 16 | 6 16 16 16 16 Final Carried 15 | 5 9 11 15 13 Class Distribution -------------------- 100% | Mutant Dominant Class ---------------- Mutant | -10/Materials Mutant | -10/Mines Mutant | -10/Exiles Mutant | -9/Mines Resources | -11 -10 -10 -10 -9 ----------- Run | Scr Mat Min Exi Min Matter Collected 469 | 272 35 143 . 19 Remotely . | . . . . . Salvage Created 682 | 112 77 464 . 29 Parts 37 | 5 3 29 . . Haulers Intercepted . | . . . . . Recyclers Shooed . | . . . . . Parts Field Recycled . | . . . . . Retrieved Matter . | . . . . . Parts Self-Destructed . | . . . . . Prevented . | . . . . . Kills | -11 -10 -10 -10 -9 ------- Run | Scr Mat Min Exi Min Combat Hostiles Destroyed 21 | . 4 9 . 8 Guns 13 | . 4 9 . . AOE 8 | . . . . 8 Classes Destroyed 7 | 3 2 1 . 1 Worker 1 | 1 . . . . Builder 1 | . . 1 . . Tunneler 3 | 1 . 2 . . Recycler 2 | 1 . 1 . . Swarmer 6 | . 3 3 . . Grunt 7 | . 1 6 . . Assembled 8 | . . . . 8 Best Kill Streak 8 | 2 4 3 . 8 Combat Bots Only 8 | . 4 3 . 8 Max Kills in Single Turn 3 | 1 1 1 . 3 Gunslinging . | . . . . . Exploded 3 | . . . . 3 Melee . | . . . . . Uniques/NPCs Destroyed . | . . . . . Combat | -11 -10 -10 -10 -9 -------- Run | Scr Mat Min Exi Min Damage Taken 929 | . 65 382 . 482 Core 255 | . 8 61 . 186 Absorbed by Shields . | . . . . . Core Remaining (%) 100 | 100 . . . . Volleys Fired 57 | 8 7 31 . 11 Largest 2 | 2 2 2 . 1 Hottest 85 | 60 60 85 . 33 Shots Fired 102 | 16 14 61 . 11 Gun 91 | 16 14 61 . . Cannon . | . . . . . Launcher 11 | . . . . 11 Special . | . . . . . Kinetic 46 | 8 7 31 . . Thermal 45 | 8 7 30 . . Explosive 11 | . . . . 11 Electromagnetic . | . . . . . Robot Hit Streak 11 | 4 8 11 . . Robot Miss Streak 2 | 2 1 2 . 1 Penetration Max . | . . . . . Secondary Targets 2 | . . 2 . . Max Gunslinging Chain 1 | . . 1 . . Shots Hit Robots 62 | 9 9 44 . . Core Hits 46 | 4 6 23 . 13 Critical Hits . | . . . . . Critical Kills . | . . . . . Critical Parts Destroyed . | . . . . . Melee Attacks . | . . . . . Impact . | . . . . . Slashing . | . . . . . Piercing . | . . . . . Sneak Attacks . | . . . . . Combat Hostiles . | . . . . . Follow-up Attacks . | . . . . . Damage Inflicted 1369 | 107 100 477 . 685 Guns 684 | 107 100 477 . . Cannons . | . . . . . Explosions 685 | . . . . 685 Melee . | . . . . . Ramming . | . . . . . Kinetic 271 | 39 23 209 . . Thermal 413 | 68 77 268 . . Explosive 685 | . . . . 685 Electromagnetic . | . . . . . Impact . | . . . . . Slashing . | . . . . . Piercing . | . . . . . Highest Corruption . | . . . . . Average Corruption . | . . . . . Corruption Purged . | . . . . . Overload Shots . | . . . . . Overflow Damage 24 | . . . . 24 Projectiles . | . . . . . Explosions 24 | . . . . 24 Melee . | . . . . . Knockbacks . | . . . . . Impact . | . . . . . Kinetic . | . . . . . Secondary . | . . . . . Self-Inflicted Damage 84 | . . . . 84 Shots 2 | . . . . 2 Rammed . | . . . . . Targets Rammed . | . . . . . Kicked . | . . . . . Crushed . | . . . . . Highest Temperature 148 | 20 18 148 . . Average Temperature 45 | 20 15 52 . . Received Heat Transfer 177 | . 18 159 . . Siege Activations . | . . . . . Robots Corrupted . | . . . . . Combat Hostiles . | . . . . . Parts Fried . | . . . . . Impact Corruptions . | . . . . . Robots Melted . | . . . . . Combat Hostiles . | . . . . . Parts Melted 1 | . . 1 . . Heat Transferred 996 | 150 175 671 . . Parts Sabotaged . | . . . . . Parts Stolen . | . . . . . Parts Stripped . | . . . . . Power Chain Reactions . | . . . . . Missiles Intercepted . | . . . . . Alert | -11 -10 -10 -10 -9 ------- Run | Scr Mat Min Exi Min Peak Influence 195 | 15 154 195 . . Average Influence 67 | 4 63 106 . . Maximum Alert Level . | . . . . . Low Security (%) 100 | 100 100 100 . 100 Level 1 . | . . . . . Level 2 . | . . . . . Level 3 . | . . . . . Level 4 . | . . . . . Level 5 . | . . . . . High Security . | . . . . . Max Security . | . . . . . Squads Dispatched 2 | . 2 . . . Investigation 1 | . 1 . . . Extermination . | . . . . . Reinforcement 1 | . 1 . . . Assault . | . . . . . Garrison . | . . . . . Intercept . | . . . . . Construction Impeded . | . . . . . Haulers Reinforced . | . . . . . Stealth | -11 -10 -10 -10 -9 --------- Run | Scr Mat Min Exi Min Distress Signals . | . . . . . Communications Jammed . | . . . . . Distress Signals . | . . . . . Times Spotted 26 | . 7 9 . 10 Peak Tracking Total 6 | . 3 3 . 6 Tactical Retreats . | . . . . . Traps | -11 -10 -10 -10 -9 ------- Run | Scr Mat Min Exi Min Traps Triggered 1 | . 1 . . . Indirectly . | . . . . . Trap Hack Attempts . | . . . . . Triggered . | . . . . . Disarmed . | . . . . . Reprogrammed . | . . . . . Reused . | . . . . . Traps Extracted . | . . . . . Installed . | . . . . . Triggered . | . . . . . Machines | -11 -10 -10 -10 -9 ---------- Run | Scr Mat Min Exi Min Machines Disabled . | . . . . . Max in Single Turn . | . . . . . Machines Sabotaged . | . . . . . Garrisons Compromised . | . . . . . Overloaded Fab Kills . | . . . . . Fab Network Shutdowns . | . . . . . Hacking | -11 -10 -10 -10 -9 --------- Run | Scr Mat Min Exi Min Machines Accessed 4 | . 1 1 2 . Terminals 2 | . 1 1 . . Fabricators . | . . . . . Repair Stations . | . . . . . Recycling Units . | . . . . . Scanalyzers . | . . . . . Garrison Access . | . . . . . Total Hacks 5 | . 2 1 2 . Successful 3 | . . 1 2 . Failed 2 | . 2 . . . Catastrophic . | . . . . . Database Lockouts . | . . . . . Manual 4 | . 2 1 1 . Terminals 3 | . 2 1 . . Fabricators . | . . . . . Repair Stations . | . . . . . Recycling Units . | . . . . . Scanalyzers . | . . . . . Garrison Access . | . . . . . Terminal Hacks 3 | . . 1 2 . Record 1 | . . . 1 . Unreport Threat 1 | . . 1 . . EX-Prototype ID Bank 1 | . . . 1 . Fabricator Hacks . | . . . . . Repair Station Hacks . | . . . . . Recycling Unit Hacks . | . . . . . Scanalyzer . | . . . . . Garrison Access Hacks . | . . . . . Unauthorized Hacks . | . . . . . Terminals . | . . . . . Fabricators . | . . . . . Repair Stations . | . . . . . Recycling Units . | . . . . . Scanalyzers . | . . . . . Garrison Access . | . . . . . Data Cores Recovered . | . . . . . Used . | . . . . . Hacking Detections 1 | . 1 . . . Full Trace Events . | . . . . . Feedback Events . | . . . . . Feedback Blocked . | . . . . . Robot Schematics Acquired . | . . . . . Robots Built . | . . . . . Matter . | . . . . . Time . | . . . . . Total Robot Build Rating . | . . . . . Part Schematics Acquired . | . . . . . Parts Built . | . . . . . Matter . | . . . . . Time . | . . . . . Total Part Build Rating . | . . . . . Parts Repaired . | . . . . . Time . | . . . . . Parts Recycled . | . . . . . Recycled Matter . | . . . . . Retrieved Matter . | . . . . . Retrieved Components . | . . . . . Parts Scanalyzed . | . . . . . Part Schematics Acquired . | . . . . . Parts Damaged . | . . . . . Bothacking | -11 -10 -10 -10 -9 ------------ Run | Scr Mat Min Exi Min Used RIF Installer . | . . . . . Robots Hacked . | . . . . . Non-combat . | . . . . . Combat . | . . . . . Robot Hacks Applied . | . . . . . Relay Couplers Released . | . . . . . Robots Rewired . | . . . . . Allies Hacked . | . . . . . Hacks Repelled . | . . . . . Allies | -11 -10 -10 -10 -9 -------- Run | Scr Mat Min Exi Min Total Allies . | . . . . . Largest Group . | . . . . . Highest-Rated Group . | . . . . . Highest-Rated Ally . | . . . . . Total Orders . | . . . . . Ally Attacks . | . . . . . Total Damage . | . . . . . Kills . | . . . . . Allies Corrupted . | . . . . . Allies Melted . | . . . . . Intel | -11 -10 -10 -10 -9 ------- Run | Scr Mat Min Exi Min Robot Analysis Total . | . . . . . Derelict Logs Recovered 2 | . . 1 . 1 Drone Launches . | . . . . . Drone Recoveries . | . . . . . Exploration | -11 -10 -10 -10 -9 ------------- Run | Scr Mat Min Exi Min Turns Passed 1220 | 110 188 431 350 141 Spaces Moved 945 | 75 163 317 288 102 Core 1 | 1 . . . . Treads . | . . . . . Legs . | . . . . . Wheels 944 | 74 163 317 288 102 Hover . | . . . . . Flight . | . . . . . Fastest Speed 50 | 50 90 100 110 110 Average Speed 102 | 89 92 102 110 110 Slowest Speed 110 | 100 100 110 110 110 Overloaded Moves . | . . . . . Propulsion Burnouts . | . . . . . Robots Hopped . | . . . . . Cave-ins Triggered . | . . . . . Exploration Rate (%) 37 | 5 29 70 61 24 Regions Visited 4 Branch Regions 3 Pre-discovered Areas 2 | . . 1 1 . Known Exits Taken . | . . . . . Unknown Exits Taken 4 | 1 1 1 1 . Scrap Searched 2 | . . 1 . 1 Spaces Dug . | . . . . . Terrain Destroyed 102 | . . . . 102 Melee . | . . . . . Projectile . | . . . . . AOE 102 | . . . . 102 Actions | -11 -10 -10 -10 -9 --------- Run | Scr Mat Min Exi Min Total 1090 | 98 186 362 322 122 Wait 52 | 5 12 5 27 3 Move 941 | 74 162 316 287 102 Hop . | . . . . . Pick Up 21 | 5 3 5 6 2 Fast Attach 7 | 6 1 . . . Attach 7 | . . 4 . 3 Detach . | . . . . . Swap 2 | . 1 1 . . Drop 3 | . . . 2 1 Fire 57 | 8 7 31 . 11 Melee . | . . . . . Ram . | . . . . . Kick . | . . . . . Crush . | . . . . . Escape Stasis . | . . . . . Rewire . | . . . . . Trap . | . . . . . Miscellaneous . | . . . . . Route ------- -11/Scrapyard -10/Materials -10/Mines (discovered 2 exits: [*Mat] / *Exi) -10/Exiles (discovered 2 exits: [*Min x2]) -9/Mines History --------- Turn | Location | Event 19 | -11/Scrapyard | Discovered new exit (range 16) 111 | -11/Scrapyard | Entered Materials 200 | -10/Materials | Discovered new exit (range 8) 299 | -10/Materials | Entered Mines 305 | -10/Mines | Build established: Mutant 328 | -10/Mines | Discovered new exit (range 8) 677 | -10/Mines | Lost 3 parts (1n2w) 725 | -10/Mines | Deemed a non-threat by the Exiles lab entrance 725 | -10/Mines | Discovered new exit (range 5) 730 | -10/Mines | Entered Exiles 748 | -10/Exiles | Discovered new exit (range 15) 770 | -10/Exiles | Met 8R-AWN 786 | -10/Exiles | Met EX-HEX 818 | -10/Exiles | Met EX-BIN 834 | -10/Exiles | Aligned with FarCom system 835 | -10/Exiles | Given EX-Vault access code 861 | -10/Exiles | Opened EX-Vault 868 | -10/Exiles | Found Field Lobotomy Kit 874 | -10/Exiles | Found Gui. Plasma Cannon 878 | -10/Exiles | Found Trap Reconfigurator 900 | -10/Exiles | Warned to stay clear of 0b10 Research branches 910 | -10/Exiles | Exiles lab attacked by MAIN.C 940 | -10/Exiles | Learned location of Zion (-6) 1060 | -10/Exiles | Discovered new exit (range 10) 1080 | -10/Exiles | Stole three prototypes: Trap Reconfigurator, Gui. Plasma Cannon, Field Lobotomy Kit 1080 | -10/Exiles | Entered Mines 1143 | -9/Mines | Received a Rocket Launcher from a helpful Derelict 1166 | -9/Mines | Assembled infested the area 1167 | -9/Mines | Met a Derelict bent on vengeance 1171 | -9/Mines | Assisted by a Guerilla fighting off Assembled 1205 | -9/Mines | Core integrity fell below 50% 1218 | -9/Mines | Core integrity fell below 20% 1221 | -9/Mines | Destroyed by as-72706 with Assembled Rifle Last Messages --------------- 01182_ Assault Rifle destroyed. 01188_ Destroyed Asb. Heavy Rifle. 01188_ Destroyed Asb. Hover Unit. 01190_ as-40209 destroyed. 01199_ The unstable cave ceiling collapses. 01205_ Sml. Laser destroyed. 01206_ as-66532 destroyed. 01212_ Destroyed Asb. Hover Unit. 01213_ U-05 Engineer lays Concrete. 01213_ Ion Engine destroyed. 01214_ The unstable cave ceiling collapses. 01214_ as-28956 destroyed. 01215_ U-05 Engineer builds a Wall. 01215_ Rocket Launcher destroyed. 01215_ Com. Wheel destroyed. 01216_ The unstable cave ceiling collapses. 01217_ as-78933 sneak attacks. 01217_ U-05 Engineer destroyed. 01219_ Acquired 19 matter. 01220_ The unstable cave ceiling collapses. Map ----- +----------------------------------------------------+ | ???????????????????????? ??????????????? | | ???????????????????????? ???????????????? | | ????????????????????????# #???????????????? | | ????????????????????????# #???????????????? | | ???????????????????????## ##??????????????? | | ??????????????????????## ???????????????? | | ????????????????????### ????????????????? | | ???????????????????## ?????????????????? | | ???????????????????# #??????????????????? | | ??????????????????## #???????????????????? | | ??????????????????# ##########??????????? | | ??????????????????# d =%#??????????? | | ??????????????????## !####???????? | | ???????????????????## ###### ! #???????? | | ????????????????????# #???# #???????? | | ????????????????????## #???##### #???????? | | ?????????????????????## ##???????# #???????? | | ??????????????????????# ####????????# #???????? | | ??????????????????????# ##???????????# #???????? | | ??????????????????????# #????????????# #???????? | | ????????????????# ##### #####????????# #???????? | | ????????????????# ##???????# #??#####? | | ????????????????####### #???????# #?## ## | | ??????????????####???### #???????# ### | | ???????????#### #### ## ##???????# # | | ???????????# # a@! ##????????# # | | ???????????# # a=| ##?????????##### | | ???????????# a a a####??????????????## | | ???????????# # #??????????????????## | | ???????????# % ##??????????????????## # | | ???????????## ##??????????????????#### | | ????????????# # # #????????????????????? | | ????????????# ### ##???????????????????? | | ????????????# ??# * ???????????????????? | | ????????????# ###??# = ??????????????????? | | ????????????# ?????# #?????????????????? | | ????????????#??????# #????????????????? | | ??????????????????# # # ????????????????? | | ????????????????# # #????????????????? | | ????????????????# ## *% ??????????????? | | ????????????????#####?? = ?????????????? | | ???????????????????????? ????????????? | | ????????????????????????? ?? ## ???????????? | | ???????????????????????????? ##?? ??????????? | | ????????????????????????????? ##??????????????? | | ?????????????????????????????####???????????????? | | ????????????????????????????????????????????????? | | ????????????????????????????????????????????????? | | ????????????????????????????????????????????????? | | ????????????????????????????????????????????????? | +----------------------------------------------------+ Best States ------------- Heat Dissipation 25 Energy Generation 10 Energy Capacity 250 Matter Stores 300 Matter Capacity 300 Sight Range 16 Terrain Scan Density 10 Evasion (%) 42 Item Schematics ----------------- None Robot Schematics ------------------ None Fabricated ------------ Nothing Alien Tech Used ----------------- None Achievements -------------- None Challenges ------------ None Game ------ Seed MagneticDisruptionMembrane Manual? 0 Play Time 00:10:29 Cumulative 97.1 hours Start 2020.08.17 @ 21:34:41 End 2020.08.17 @ 21:43:14 Sessions 1 Manual Loads 0 Difficulty Rogue Special Mode None Game No. 112 Rogue 25 Adventurer 87 Explorer 0 Win Type - Total 3 Types 2/0/0/1/0/0/0 Lore% 48 Gallery% 62 Achievement% 53 Wizard Run 0 Options --------- ASCII 0 Keyboard 1 Movement Numpad Keybinds 0 Fullscreen 1 Font 18/Smallcaps Map View 76x50 Tactical HUD 1 Map Filters NONE Filters NONE Steam 1 RUN: 889a3eed-4483-4b4c-8bfd-d5391f3a60cd